Cogmind - Beta 13 @@@ ROGUE MODE // 2024.04.17 @ 23:42:05 Player: Korywon Result: Destroyed by PF-N1G(R) with Subdweller Beam Cannon Performance ------------- Evolutions (0) 0 Regions Visited (3) 600 Robots Destroyed (25) 125 Value Destroyed (433) 433 Prototype IDs (1) 20 Alien Tech Used (0) 0 Bonus (66) 66 TOTAL SCORE: 1244 Bonus ------- Follower Combat Kills 66 Cogmind --------- Core Integrity 0/250 Matter 287/300 Energy 121/125 System Corruption 0% Temperature Cool (11) Movement Treading (165) Location -10/Subcaves Parts ------- > --- POWER (1) -------- Light Ion Engine > --- PROPULSION (2) --- Light Treads Armored Treads > --- UTILITY (2) ------ Large Storage Unit Splice Drone Bay (3/6) > --- WEAPON (2) ------- Shotgun Hammer > --- INVENTORY (15) --- Deuterium Engine Nuclear Core Aluminum Leg Aluminum Leg Large Storage Unit Power Shielding Power Shielding Utility Shielding Scrap Shield Light Assault Rifle Shotgun Grenade Launcher Scrap Shield Fragment (47) Peak State ------------ > --- POWER ------------ Light Ion Engine > --- PROPULSION ------- Light Treads Armored Treads > --- UTILITY ---------- Large Storage Unit Splice Drone Bay > --- WEAPON ----------- Shotgun Hammer > --- INVENTORY -------- Deuterium Engine Nuclear Core Aluminum Leg Aluminum Leg Wheel Compact Wheel Large Storage Unit Utility Shielding Light Assault Rifle Shotgun Shotgun Light Cannon Light Cannon Grenade Launcher [Rating: 18] Favorites ----------- Power Light Ion Engine Engine Light Ion Engine Propulsion Light Treads Treads Light Treads Utility Large Storage Unit Device Structural Scanner Storage Large Storage Unit Weapon Light Assault Rifle Ballistic Gun Light Assault Rifle Launcher Grenade Launcher Impact Weapon Hammer Build | -11 -10 -10 -10 ------- Run | Yrd Mat Min Sub Slots Evolved . | . . . . Power . | . . . . Propulsion . | . . . . Utility . | . . . . Weapon . | . . . . Parts Attached 18 | 6 6 5 1 Power 2 | 1 1 . . Engine 2 | 1 1 . . Core . | . . . . Reactor . | . . . . Propulsion 3 | 2 . 1 . Treads 3 | 2 . 1 . Leg . | . . . . Wheel . | . . . . Hover . | . . . . Flight . | . . . . Utility 5 | 1 2 2 . Device 3 | . 1 2 . Storage 2 | 1 1 . . Processor . | . . . . Hackware . | . . . . Protection . | . . . . Artifact . | . . . . Weapon 8 | 2 3 2 1 Energy Gun . | . . . . Energy Cannon . | . . . . Ballistic Gun 5 | 2 1 1 1 Ballistic Cannon . | . . . . Launcher 2 | . 2 . . Special Weapon . | . . . . Impact Weapon 1 | . . 1 . Slashing Weapon . | . . . . Piercing Weapon . | . . . . Special Melee Weapon . | . . . . Unidentified Prototypes 1 | . . 1 . Parts Lost 3 | . 1 1 1 Power 1 | . 1 . . Propulsion . | . . . . Utility 1 | . . 1 . Weapon 1 | . . . 1 Highest Loss Streak 1 | . 1 1 1 To Critical Strikes . | . . . . Average Slot Usage (%) 97 | . 96 98 100 Engine 13 | . 13 14 14 Treads 28 | . 28 28 28 Device 11 | . 11 12 14 Storage 14 | . 14 14 14 Ballistic Gun 20 | . 27 14 14 Impact Weapon 6 | . . 13 14 Naked Turns . | . . . . Heaviest Build 36 | 13 27 36 36 Greatest Support 40 | 3 40 40 40 Greatest Overweight (x) 4 | 4 . . . Average Overweight (x) . | 2 . . . Largest Inventory Capacity 15 | 8 15 15 15 Average Capacity 13 | 7 12 15 15 Most Carried 15 | 7 15 15 15 Average Carried 12 | 4 11 14 14 Final Capacity 15 | 8 15 15 15 Final Carried 15 | 6 15 15 14 Class Distribution -------------------- 100% | Mutant Dominant Class ---------------- Mutant | -10/Materials Mutant | -10/Mines Mutant | -10/Subcaves Resources | -11 -10 -10 -10 ----------- Run | Yrd Mat Min Sub Matter Collected 587 | 213 301 73 . Remotely . | . . . . Salvage Created 631 | . 483 148 . Parts 34 | . 28 6 . Haulers Intercepted 1 | . 1 . . Recyclers Shooed 3 | . 3 . . Parts Field Recycled . | . . . . Retrieved Matter . | . . . . Parts Self-Destructed . | . . . . Prevented . | . . . . Kills | -11 -10 -10 -10 ------- Run | Yrd Mat Min Sub Combat Hostiles Destroyed 17 | . 10 7 . Melee 4 | . . 4 . Guns 9 | . 8 1 . AOE 2 | . 2 . . Classes Destroyed 7 | . 6 1 . Builder 1 | . . 1 . Hauler 1 | . 1 . . Recycler 3 | . 3 . . Operator 1 | . 1 . . Watcher 2 | . 2 . . Swarmer 11 | . 6 5 . Grunt 6 | . 4 2 . Best Kill Streak 5 | . 5 3 . Combat Bots Only 5 | . 5 3 . Max Kills in Single Turn 2 | . 2 1 . Gunslinging 1 | . 1 . . Exploded 1 | . 1 . . Melee 1 | . . 1 . Uniques/NPCs Destroyed . | . . . . Combat | -11 -10 -10 -10 -------- Run | Yrd Mat Min Sub Hostile Shots Fired 149 | . 51 80 18 Missed 35 | . 15 18 2 Damage Taken 1347 | . 366 621 360 Core 271 | . 19 136 116 Absorbed by Shields . | . . . . Regen/Repaired (Parts) 16 | . 16 . . Core Remaining (%) 100 | 100 . . . Volleys Fired 56 | . 47 7 2 Largest 2 | . 2 1 1 Hottest 50 | . 50 23 23 Shots Fired 96 | . 87 7 2 Gun 94 | . 85 7 2 Cannon . | . . . . Launcher 2 | . 2 . . Special . | . . . . Kinetic 94 | . 85 7 2 Thermal . | . . . . Explosive 2 | . 2 . . Electromagnetic . | . . . . Robot Hit Streak 8 | . 8 3 4 Robot Miss Streak 5 | . 5 4 . Penetration Max . | . . . . Secondary Targets 2 | . 2 . . Max Gunslinging Chain 1 | . 1 . . Shots Hit Robots 73 | . 50 21 2 Core Hits 33 | . 29 4 . Critical Kills 1 | . . 1 . Critical Parts Destroyed 4 | . . 4 . Critical Strikes 5 | . . 5 . Smash 5 | . . 5 . Melee Attacks 21 | . . 20 1 Impact 21 | . . 20 1 Slashing . | . . . . Piercing . | . . . . Sneak Attacks 1 | . . 1 . Combat Hostiles . | . . . . Follow-up Attacks . | . . . . Damage Inflicted 1269 | . 711 516 42 Guns 678 | . 577 59 42 Cannons . | . . . . Explosions 134 | . 134 . . Melee 457 | . . 457 . Ramming . | . . . . Kinetic 678 | . 577 59 42 Thermal . | . . . . Explosive 134 | . 134 . . Electromagnetic . | . . . . Impact 457 | . . 457 . Slashing . | . . . . Piercing . | . . . . Highest Corruption . | . . . . Average Corruption . | . . . . Corruption Purged . | . . . . Corruption Blocked . | . . . . Overload Shots . | . . . . Overflow Damage 192 | . 30 162 . Projectiles . | . . . . Explosions 30 | . 30 . . Melee 162 | . . 162 . Knockbacks 1 | . . 1 . Impact 1 | . . 1 . Kinetic . | . . . . Secondary . | . . . . Self-Inflicted Damage . | . . . . Shots . | . . . . Rammed . | . . . . Targets Rammed . | . . . . Kicked . | . . . . Crushed . | . . . . Highest Temperature 18 | . 18 6 . Average Temperature 7 | . 7 6 . Received Heat Transfer 231 | . 99 96 36 Siege Activations . | . . . . Robots Corrupted . | . . . . Combat Hostiles . | . . . . Parts Fried 4 | . . 4 . Impact Corruptions 8 | . . 8 . Robots Melted . | . . . . Combat Hostiles . | . . . . Parts Melted . | . . . . Heat Transferred . | . . . . Parts Sabotaged . | . . . . Parts Stolen . | . . . . Parts Stripped . | . . . . Power Chain Reactions . | . . . . Alert | -11 -10 -10 -10 ------- Run | Yrd Mat Min Sub Peak Influence 298 | . 298 105 . Initial . | . . . . Average 53 | . 71 40 . Maximum Alert Level 1 | . 1 . . Low Security (%) 96 | 100 92 100 . Level 1 3 | . 7 . . Level 2 . | . . . . Level 3 . | . . . . Level 4 . | . . . . Level 5 . | . . . . High Security . | . . . . Max Security . | . . . . Squads Dispatched 2 | . 2 . . Investigation 1 | . 1 . . Extermination . | . . . . Reinforcement 1 | . 1 . . Assault . | . . . . Garrison . | . . . . Intercept . | . . . . Searches Triggered . | . . . . Construction Impeded . | . . . . Haulers Reinforced . | . . . . Active Scanning Responses . | . . . . Cargo Convoy Interrupts . | . . . . Stealth | -11 -10 -10 -10 --------- Run | Yrd Mat Min Sub Distress Signals 2 | . 2 . . Communications Jammed . | . . . . Distress Signals . | . . . . Times Spotted 42 | . 22 11 9 Peak Tracking Total 7 | . 5 3 7 Tactical Retreats 1 | . . 1 . Traps | -11 -10 -10 -10 ------- Run | Yrd Mat Min Sub Traps Triggered . | . . . . Indirectly . | . . . . Trap Hack Attempts . | . . . . Triggered . | . . . . Disarmed . | . . . . Reprogrammed . | . . . . Reused . | . . . . Traps Extracted . | . . . . Installed . | . . . . Triggered . | . . . . Machines | -11 -10 -10 -10 ---------- Run | Yrd Mat Min Sub Machines Disabled 2 | . 2 . . Max in Single Turn 2 | . 2 . . Machines Repaired . | . . . . Machines Dismantled . | . . . . Machines Sabotaged . | . . . . Overloaded Fab Kills . | . . . . Hacking | -11 -10 -10 -10 --------- Run | Yrd Mat Min Sub Machines Accessed 9 | . 7 2 . Terminals 6 | . 6 . . Fabricators . | . . . . Repair Stations 1 | . 1 . . Recycling Units . | . . . . Scanalyzers . | . . . . Garrison Access . | . . . . Total Hacks 22 | . 20 2 . Successful 15 | . 13 2 . Failed 7 | . 7 . . Catastrophic . | . . . . Database Lockouts . | . . . . Manual 4 | . 4 . . Terminals 17 | . 17 . . Fabricators . | . . . . Repair Stations 3 | . 3 . . Recycling Units . | . . . . Scanalyzers . | . . . . Garrison Access . | . . . . Terminal Hacks 9 | . 7 2 . Open Door 2 | . . 2 . Emergency Access Points 1 | . 1 . . Terminal Index 1 | . 1 . . Locate Traps 3 | . 3 . . Recall Investigation 1 | . 1 . . Zone Layout 1 | . 1 . . Fabricator Hacks . | . . . . Repair Station Hacks 3 | . 3 . . Scan Component 2 | . 2 . . Repair 1 | . 1 . . Recycling Unit Hacks . | . . . . Scanalyzer . | . . . . Garrison Access Hacks . | . . . . Unauthorized Hacks 3 | . 3 . . Terminals 3 | . 3 . . Botnet 3 | . 3 . . Fabricators . | . . . . Repair Stations . | . . . . Recycling Units . | . . . . Scanalyzers . | . . . . Garrison Access . | . . . . Data Cores Recovered . | . . . . Used . | . . . . Hacking Detections 5 | . 5 . . Full Trace Events 1 | . 1 . . Feedback Events . | . . . . Feedback Blocked . | . . . . Robot Schematics Acquired . | . . . . Robots Built . | . . . . Authchips . | . . . . Time . | . . . . Total Robot Build Rating . | . . . . Part Schematics Acquired . | . . . . Parts Built . | . . . . Authchips . | . . . . Time . | . . . . Total Part Build Rating . | . . . . Parts Repaired 1 | . 1 . . Time 26 | . 26 . . Parts Recycled . | . . . . Recycled Matter . | . . . . Retrieved Matter . | . . . . Retrieved Components . | . . . . Parts Scanalyzed . | . . . . Part Schematics Acquired . | . . . . Parts Damaged . | . . . . Bothacking | -11 -10 -10 -10 ------------ Run | Yrd Mat Min Sub Used RIF Installer . | . . . . Robots Hacked . | . . . . Non-combat . | . . . . Combat . | . . . . Robot Hacks Applied . | . . . . Relay Couplers Released . | . . . . Fabnet Peak Effective % . | . . . . Robots Rewired . | . . . . Allies Hacked . | . . . . Hacks Repelled . | . . . . Allies | -11 -10 -10 -10 -------- Run | Yrd Mat Min Sub Total Allies . | . . . . Largest Group . | . . . . Highest-Rated Group . | . . . . Highest-Rated Ally . | . . . . Total Orders . | . . . . Ally Attacks 16 | . . 11 5 Total Damage 99 | . . 74 25 Kills 2 | . . 2 . Allies Corrupted . | . . . . Allies Melted . | . . . . Intel | -11 -10 -10 -10 ------- Run | Yrd Mat Min Sub Robot Analysis Total . | . . . . Derelict Logs Recovered 1 | . . 1 . Drone Launches 18 | . . 13 5 Drone Recoveries 15 | . . 10 5 Exploration | -11 -10 -10 -10 ------------- Run | Yrd Mat Min Sub Turns Passed 3675 | 163 1789 1597 126 Spaces Moved 1875 | 77 990 747 61 Core 77 | 77 . . . Treads 1798 | . 990 747 61 Legs . | . . . . Wheels . | . . . . Hover . | . . . . Flight . | . . . . Fastest Speed 50 | 50 160 160 165 Average Speed 163 | 194 160 164 165 Slowest Speed 250 | 250 160 165 165 Overloaded Moves . | . . . . Propulsion Burnouts . | . . . . Robots Hopped . | . . . . Cave-ins Triggered . | . . . . Exploration Rate (%) 50 | 5 94 97 5 Regions Visited 3 Branch Regions 2 Pre-discovered Areas . | . . . . Known Exits Taken . | . . . . Unknown Exits Taken 3 | 1 1 1 . Scrap Searched 1 | . . 1 . Spaces Dug . | . . . . Terrain Destroyed 5 | . 5 . . Melee . | . . . . Projectile . | . . . . AOE 5 | . 5 . . Terrain Rammed . | . . . . Walls Destroyed . | . . . . Machines Disabled . | . . . . Actions | -11 -10 -10 -10 --------- Run | Yrd Mat Min Sub Total 2374 | 89 1118 1082 85 Wait 359 | . 57 287 15 Move 1872 | 76 989 746 61 Hop . | . . . . Pick Up 31 | 7 14 8 2 Fast Attach 8 | 5 2 1 . Attach 6 | 1 2 2 1 Detach . | . . . . Swap 4 | . 2 2 . Drop 17 | . 5 9 3 Fire 56 | . 47 7 2 Melee 21 | . . 20 1 Ram . | . . . . Kick . | . . . . Crush . | . . . . Escape Stasis . | . . . . Rewire . | . . . . Trap . | . . . . Miscellaneous . | . . . . Route ------- -11/Scrapyard -10/Materials (discovered 5 exits: [*Mat x3] / *Min x2) -10/Mines (discovered 3 exits: [*Mat x2] / [*Sub]) -10/Subcaves History --------- Turn | Location | Event 2 | -11/Scrapyard | Met Revision 17 8 | -11/Scrapyard | Discovered new exit (range 15) 164 | -11/Scrapyard | Entered Materials 294 | -10/Materials | Discovered new exit (range 13) 314 | -10/Materials | Build established: Mutant 357 | -10/Materials | Repaired Grenade Launcher 714 | -10/Materials | Discovered new exit (range 14) 1215 | -10/Materials | Discovered new exit (range 6) 1482 | -10/Materials | Discovered new exit (range 10) 1659 | -10/Materials | Discovered new exit (range 12) 1953 | -10/Materials | Entered Mines 2013 | -10/Mines | Discovered new exit (range 9) 2429 | -10/Mines | Met a Derelict who couldn't figure out how to use a Trap Extractor 2518 | -10/Mines | Discovered new exit (range 15) 2731 | -10/Mines | Discovered new exit (range 6) 2760 | -10/Mines | Learned Materials garrison access intel 2900 | -10/Mines | Found the Drone Emporium 2914 | -10/Mines | Found Prototype Device 2923 | -10/Mines | Identified Splice Drone Bay 3054 | -10/Mines | Core integrity fell below 50% 3550 | -10/Mines | Entered Subcaves 3550 | -10/Subcaves | Accompanied by 1 ally 3661 | -10/Subcaves | Ambushed by swarm of Subdwellers 3674 | -10/Subcaves | Core integrity fell below 20% 3676 | -10/Subcaves | Destroyed by PF-N1G(R) with Subdweller Beam Cannon Last Messages --------------- 03670_ Splice Drone retrieved by Splice Drone Bay. 03671_ MV-OW3(g): "Sorry we're late! Had another grouchy Sub to deal with. Who's the new fellow?" 03671_ Shotgun destroyed. 03673_ 4I-9TQ(R) destroyed. 03675_ Splice Drone released from Splice Drone Bay. 03675_ Splice Drone injecting PF-N1G(R)... 03675_ PF-N1G(R) affixes Scrap Shield Fragment to Scrap Shield. 03675_ PF-N1G(R) suffers critical hit (Destroy). 03675_ PF-N1G(R) knocked back. 03676_ Splice Drone released from Splice Drone Bay. 03676_ Splice Drone retrieved by Splice Drone Bay. 03676_ Splice Drone sneak attacks. 03676_ Splice Drone injecting HF-RJ6(R)... Map ----- +----------------------------------------------------+ | | | | | | | | | | | | | | | ?????????????????????????????????????????????????? | | ?????????????????????????????????????????????????? | | ?????????????????????????????????????????????????? | | ?????????????????????????????????????????????????? | | ?????????????????????????????????????????????????? | | ?????????????????????????????????????????????????? | | ?????????????????????????????????????????????????? | | ?????????????????????????????????????????????????? | | ?????????????????????????????????????????????????? | | ?????????????????????????????????????????????????? | | ?????????????????????????????????????????????????? | | ?????????????????????????????????????????????????? | | ?????????????????????????????????????????????????? | | ?????????????????????????????????????????????????? | | ???????????????###???????????????#???????????????? | | ??????????????## ####??######### #?###???###?????? | | ??????????????# # #### # #"# # #?????? | | ??????????????# g g ghnR%"" R ???? | | ??????????????# @ %& %R ???? | | #????????????## # #### %# R#; ### ???? | | ####??###??### #######??########??#?????????????? | | ####*#### #????????????????????????????????? | | !%[% ##????????????????????????????????? | | !%] ##?????????????????????????????????? | | =## ## ## ####??????????????????????????????????? | | ############?????????????????????????????????????? | | #????????????????????????????????????????????????? | | #????????????????????????????????????????????????? | | #????????????????????????????????????????????????? | | #????????????????????????????????????????????????? | | #????????????????????????????????????????????????? | | ?????????????????????????????????????????????????? | | ?????????????????????????????????????????????????? | | ?????????????????????????????????????????????????? | | ?????????????????????????????????????????????????? | | ?????????????????????????????????????????????????? | | ?????????????????????????????????????????????????? | | ?????????????????????????????????????????????????? | | ?????????????????????????????????????????????????? | | ?????????????????????????????????????????????????? | | ?????????????????????????????????????????????????? | | ?????????????????????????????????????????????????? | | ?????????????????????????????????????????????????? | +----------------------------------------------------+ Best States ------------- Heat Dissipation 25 Energy Generation 10 Energy Capacity 250 Matter Stores 300 Matter Capacity 300 Sight Range 16 Terrain Scan Density 10 Evasion (%) 50 Recoil Reduction 2 Particle Charging 15 Item Schematics ----------------- None Robot Schematics ------------------ None Fabricated ------------ Nothing Alien Tech Used ----------------- None Achievements -------------- Error 47 Factory Defaults Challenges ------------ None Game ------ Seed MassSubdwellerShield Manual? 0 Play Time 00:24:32 Cumulative 66.3 hours Start 2024.04.17 @ 22:10:22 End 2024.04.17 @ 23:42:05 Sessions 1 Manual Loads 0 Difficulty Rogue Special Mode None Game No. 58 Rogue 58 Adventurer 0 Explorer 0 Win Type - Total 0 Types 0/0/0/0/0/0/0/0/0 Lore% 16 Gallery% 28 Achievement% 24 Wizard Run 0 Options --------- Layout 2 ASCII 0 Keyboard 0 Movement Arrows Keybinds 0 Fullscreen 1 Font 16/Cog Map View 50x49 Zoom Use 0% Tactical HUD 1 Map Filters NONE Filters NONE Steam SD RUN: 56b75567-058f-45d1-a90f-923d48302e9e